[Event "44th Chess Olympiad Open 2022"]
[Site "Chennai"]
[Date "2022.08.08"]
[Round "10.67"]
[White "Jamal, Hamid Harmon Gulamo"]
[Black "Myat Thiri Aung Kyaw"]
[Result "0-1"]
[WhiteElo "1617"]
[BlackElo "2120"]
[Annotator "NA RC"]
[PlyCount "141"]
[EventDate "2022.??.??"]
[TimeControl "60"]

1. e4 {[%emt 0:00:01]} e5 {[%emt 0:00:10]} 2. Nf3 {[%emt 0:00:06]} Nc6 {
[%emt 0:00:10]} 3. Bc4 {[%emt 0:00:07]} Bc5 {[%emt 0:00:08]} 4. c3 {[%emt 0:00:
00]} Nf6 {[%emt 0:00:08]} 5. d3 {[%emt 0:00:08]} a6 {[%emt 0:00:12]} 6. Bb3 {
[%emt 0:00:08]} Ba7 {[%emt 0:00:14]} 7. O-O {[%emt 0:00:13]} h6 {[%emt 0:03:37]
} 8. Nbd2 {[%emt 0:01:38]} O-O {[%emt 0:02:46]} 9. Re1 {[%emt 0:01:28]} d6 {
[%emt 0:00:47]} 10. h3 {[%emt 0:01:33]} Be6 {[%emt 0:00:26]} 11. Bc2 {[%emt 0:
00:00]} Qd7 {[%emt 0:01:28]} 12. Nf1 {[%emt 0:00:41]} Rad8 {[%emt 0:00:54]} 13.
Ng3 {[%emt 0:00:48]} Qc8 {[%emt 0:14:45]} 14. Nh2 {[%emt 0:00:45]} d5 {[%emt 0:
00:00]} 15. Qf3 {[%emt 0:00:53]} dxe4 {[%emt 0:04:01]} 16. dxe4 {[%emt 0:00:11]
} Nh7 {[%emt 0:04:28]} 17. Nhf1 {[%emt 0:08:30]} Rd7 {[%emt 0:11:00]} 18. Nf5 {
[%emt 0:01:34]} Qd8 {[%emt 0:06:47]} 19. N1g3 {[%emt 0:02:56]} Kh8 {[%emt 0:00:
00]} 20. a4 {[%emt 0:13:45]} a5 {[%emt 0:05:53]} 21. Qe2 {[%emt 0:03:05]} Bb6 {
[%emt 0:01:23]} 22. b3 {[%emt 0:05:23]} Rg8 {[%emt 0:03:48]} 23. Rd1 {[%emt 0:
00:00]} Rxd1+ {[%emt 0:00:35]} 24. Bxd1 {[%emt 0:00:22]} Qd7 {[%emt 0:04:43]}
25. Bc2 {[%emt 0:01:19]} f6 {[%emt 0:00:31]} 26. h4 {[%emt 0:04:34]} Qf7 {
[%emt 0:02:38]} 27. Rb1 {[%emt 0:01:38]} Rd8 {[%emt 0:01:25]} 28. Ba3 {[%emt 0:
00:00]} Nf8 {[%emt 0:05:42]} 29. h5 {[%emt 0:00:56]} Nh7 {[%emt 0:00:11]} 30.
Nh4 {[%emt 0:01:44]} Ng5 {[%emt 0:00:19]} 31. Ng6+ {[%emt 0:06:38]} Kg8 {
[%emt 0:00:31]} 32. Rd1 {[%emt 0:01:32]} Qe8 {[%emt 0:03:10]} 33. Rd2 {[%emt 0:
00:00]} Bf7 {[%emt 0:01:27]} 34. Rxd8 {[%emt 0:01:57]} Qxd8 {[%emt 0:01:44]}
35. Nh4 {[%emt 0:00:22]} Ne6 {[%emt 0:03:09]} 36. Nhf5 {[%emt 0:00:53]} Kh7 {
[%emt 0:00:37]} 37. Qg4 {[%emt 0:03:16]} Qd2 {[%emt 0:01:12]} 38. Qd1 {[%emt 0:
00:00]} Qxf2+ {[%emt 0:00:42]} 39. Kh2 {[%emt 0:00:21]} Nf4 {[%emt 0:01:39]}
40. Nh4 {[%emt 0:00:27]} Bxh5 {[%emt 0:01:25]} 41. Qf1 {[%emt 0:32:06]} Qxc2 {
[%emt 0:31:04]} 42. Nxh5 {[%emt 0:00:00]} Qxe4 {[%emt 0:00:00]} 43. Ng3 {
[%emt 0:00:00]} Qd3 {[%emt 0:00:00]} 44. Qe1 {[%emt 0:00:00]} g6 {[%emt 0:00:
00]} 45. Bc1 {[%emt 0:00:00]} h5 {[%emt 0:00:00]} 46. Bxf4 {[%emt 0:00:00]}
exf4 {[%emt 0:00:00]} 47. Ne4 {[%emt 0:00:00]} Kg7 {[%emt 0:00:00]} 48. Nf3 {
[%emt 0:00:00]} Qe3 {[%emt 0:00:00]} 49. Ned2 {[%emt 0:00:00]} Qxe1 {[%emt 0:
00:00]} 50. Nxe1 {[%emt 0:00:00]} Ne5 {[%emt 0:00:00]} 51. b4 {[%emt 0:00:00]}
g5 {[%emt 0:00:00]} 52. Nb3 {[%emt 0:00:00]} axb4 {[%emt 0:00:00]} 53. cxb4 {
[%emt 0:00:00]} Bf2 {[%emt 0:00:00]} 54. Nf3 {[%emt 0:00:00]} Nd3 {[%emt 0:00:
00]} 55. b5 {[%emt 0:00:00]} Nc5 {[%emt 0:00:00]} 56. Nxc5 {[%emt 0:00:00]}
Bxc5 {[%emt 0:00:00]} 57. a5 {[%emt 0:00:17]} Kg6 {[%emt 0:01:59]} 58. Ne1 {
[%emt 0:01:07]} Kf5 {[%emt 0:00:00]} 59. Nd3 {[%emt 0:00:35]} Be3 {[%emt 0:00:
00]} 60. Nb4 {[%emt 0:03:18]} Ke4 {[%emt 0:00:00]} 61. a6 {[%emt 0:00:53]} bxa6
{[%emt 0:00:00]} 62. bxa6 {[%emt 0:00:13]} g4 {[%emt 0:00:00]} 63. Na2 {
[%emt 0:01:06]} h4 {[%emt 0:00:00]} 64. Nc3+ {[%emt 0:00:27]} Ke5 {[%emt 0:00:
00]} 65. Kh1 {[%emt 0:02:54]} c6 {[%emt 0:00:54]} 66. Kh2 {[%emt 0:00:15]} Ba7
{[%emt 0:01:11]} 67. Kh1 {[%emt 0:01:16]} Kd4 {[%emt 0:00:58]} 68. Ne2+ {
[%emt 0:00:38]} Ke3 {[%emt 0:00:11]} 69. Ng1 {[%emt 0:00:46]} c5 {[%emt 0:00:
00]} 70. Kh2 {[%emt 0:00:44]} c4 {[%emt 0:00:11]} 71. Kh1 {[%emt 0:01:11]} 0-1

[Event "44th Chess Olympiad Open 2022"]
[Site "Chennai"]
[Date "2022.08.08"]
[Round "10.67"]
[White "Zaw Ye Htut"]
[Black "Rafael Chirinza"]
[Result "0-1"]
[WhiteElo "1255"]
[BlackElo "1725"]
[Annotator "NA RC"]
[PlyCount "90"]
[EventDate "2022.??.??"]
[TimeControl "60"]

1. e4 {[%emt 0:00:04]} c6 {[%emt 0:00:09]} 2. d4 {[%emt 0:00:53]} d5 {[%emt 0:
00:00]} 3. exd5 {[%emt 0:00:16]} cxd5 {[%emt 0:00:16]} 4. Bd3 {[%emt 0:00:12]}
Nc6 {[%emt 0:00:49]} 5. c3 {[%emt 0:00:08]} Nf6 {[%emt 0:00:59]} 6. Bf4 {
[%emt 0:00:31]} e6 {[%emt 0:01:30]} 7. Nf3 {[%emt 0:00:53]} Bd6 {[%emt 0:00:24]
} 8. Bxd6 {[%emt 0:00:16]} Qxd6 {[%emt 0:00:11]} 9. Nbd2 {[%emt 0:00:17]} a6 {
[%emt 0:01:13]} 10. O-O {[%emt 0:00:41]} O-O {[%emt 0:00:37]} 11. Re1 {[%emt 0:
00:00]} b5 {[%emt 0:02:47]} 12. Ne5 {[%emt 0:03:02]} Bb7 {[%emt 0:03:27]} 13.
Nb3 {[%emt 0:02:50]} Ra7 {[%emt 0:04:25]} 14. Nc5 {[%emt 0:00:56]} Ne7 {
[%emt 0:03:52]} 15. a4 {[%emt 0:01:28]} bxa4 {[%emt 0:04:52]} 16. Rxa4 {
[%emt 0:01:06]} Rfa8 {[%emt 0:01:36]} 17. Qe2 {[%emt 0:03:15]} a5 {[%emt 0:00:
00]} 18. Rea1 {[%emt 0:01:24]} Qb6 {[%emt 0:03:50]} 19. b3 {[%emt 0:03:49]} Nc8
{[%emt 0:05:45]} 20. R1a3 {[%emt 0:23:08]} Nd6 {[%emt 0:02:01]} 21. f3 {
[%emt 0:02:05]} Bc6 {[%emt 0:06:36]} 22. Nxc6 {[%emt 0:02:10]} Qxc6 {[%emt 0:
00:00]} 23. Qa2 {[%emt 0:00:31]} Nb7 {[%emt 0:07:37]} 24. Nxb7 {[%emt 0:00:48]}
Rxb7 {[%emt 0:03:10]} 25. Rxa5 {[%emt 0:00:17]} Rab8 {[%emt 0:01:09]} 26. Rc5 {
[%emt 0:00:20]} Qd6 {[%emt 0:00:33]} 27. Ra8 {[%emt 0:00:57]} g6 {[%emt 0:00:
00]} 28. Qa3 {[%emt 0:03:08]} Kg7 {[%emt 0:02:03]} 29. Rxb8 {[%emt 0:03:10]}
Qxb8 {[%emt 0:00:03]} 30. b4 {[%emt 0:02:04]} Qf4 {[%emt 0:01:32]} 31. Qa6 {
[%emt 0:01:36]} Qe3+ {[%emt 0:03:53]} 32. Kf1 {[%emt 0:01:54]} Re7 {[%emt 0:00:
00]} 33. Be2 {[%emt 0:09:40]} e5 {[%emt 0:02:09]} 34. Qd3 {[%emt 0:05:06]} Qc1+
{[%emt 0:04:11]} 35. Qd1 {[%emt 0:00:20]} Qe3 {[%emt 0:01:15]} 36. dxe5 {
[%emt 0:03:34]} Rxe5 {[%emt 0:01:28]} 37. Rc6 {[%emt 0:02:43]} Nh5 {[%emt 0:00:
00]} 38. g3 {[%emt 0:01:39]} Kh6 {[%emt 0:02:47]} 39. b5 {[%emt 0:02:17]} f5 {
[%emt 0:03:12]} 40. Qd3 {[%emt 0:03:56]} Qc1+ {[%emt 0:01:29]} 41. Kg2 {
[%emt 0:32:36]} Qe1 {[%emt 0:33:26]} 42. Bd1 {[%emt 0:02:51]} f4 {[%emt 0:00:
00]} 43. Bc2 {[%emt 0:05:14]} Re2+ {[%emt 0:03:22]} 44. Kh3 {[%emt 0:01:10]}
Rxh2+ {[%emt 0:01:42]} 45. Kxh2 {[%emt 0:03:28]} Qf2+ {[%emt 0:00:49]} 0-1

[Event "44th Chess Olympiad Open 2022"]
[Site "Chennai"]
[Date "2022.08.08"]
[Round "10.68"]
[White "Mannhart, Marcel"]
[Black "Van den Brink, Peter"]
[Result "0-1"]
[WhiteElo "2110"]
[BlackElo "2167"]
[Annotator "NA RC"]
[PlyCount "28"]
[EventDate "2022.??.??"]
[TimeControl "60"]

1. Nc3 {[%emt 0:00:04]} c5 {[%emt 0:00:23]} 2. e4 {[%emt 0:00:06]} g6 {[%emt 0:
00:00]} 3. d4 {[%emt 0:00:21]} cxd4 {[%emt 0:00:10]} 4. Qxd4 {[%emt 0:00:13]}
Nf6 {[%emt 0:00:08]} 5. Be3 {[%emt 0:02:01]} Nc6 {[%emt 0:00:23]} 6. Qd2 {
[%emt 0:00:19]} Bg7 {[%emt 0:13:28]} 7. f3 {[%emt 0:02:27]} d6 {[%emt 0:03:50]}
8. Bh6 {[%emt 0:14:42]} Bxh6 {[%emt 0:03:09]} 9. Qxh6 {[%emt 0:00:22]} Be6 {
[%emt 0:00:38]} 10. O-O-O {[%emt 0:10:15]} Qa5 {[%emt 0:01:30]} 11. Kb1 {
[%emt 0:02:56]} O-O-O {[%emt 0:04:38]} 12. Qd2 {[%emt 0:10:35]} d5 {[%emt 0:00:
00]} 13. Nxd5 {[%emt 0:01:18]} Nxd5 {[%emt 0:07:38]} 14. Qxa5 {[%emt 0:02:26]}
Nc3+ {[%emt 0:00:35]} 0-1

[Event "44th Chess Olympiad Open 2022"]
[Site "Chennai"]
[Date "2022.08.08"]
[Round "10.68"]
[White "Jelic, Dejan"]
[Black "Pesqueira, Jose"]
[Result "1/2-1/2"]
[WhiteElo "1905"]
[BlackElo "1809"]
[Annotator "NA RC"]
[PlyCount "98"]
[EventDate "2022.??.??"]
[TimeControl "60"]

1. d4 {[%emt 0:00:03]} g6 {[%emt 0:00:11]} 2. c4 {[%emt 0:00:05]} Bg7 {[%emt 0:
00:00]} 3. Nc3 {[%emt 0:00:05]} d6 {[%emt 0:00:37]} 4. Nf3 {[%emt 0:00:06]} e5
{[%emt 0:03:54]} 5. dxe5 {[%emt 0:01:45]} dxe5 {[%emt 0:00:11]} 6. Qxd8+ {
[%emt 0:08:04]} Kxd8 {[%emt 0:00:04]} 7. Bg5+ {[%emt 0:00:16]} f6 {[%emt 0:00:
00]} 8. O-O-O+ {[%emt 0:00:32]} Bd7 {[%emt 0:00:15]} 9. Bh4 {[%emt 0:03:58]}
Kc8 {[%emt 0:04:23]} 10. e3 {[%emt 0:02:12]} g5 {[%emt 0:10:44]} 11. Bg3 {
[%emt 0:00:09]} h5 {[%emt 0:00:32]} 12. h3 {[%emt 0:00:43]} Ne7 {[%emt 0:08:12]
} 13. Be2 {[%emt 0:01:29]} Nf5 {[%emt 0:01:04]} 14. Bh2 {[%emt 0:01:12]} Na6 {
[%emt 0:11:50]} 15. Nd2 {[%emt 0:04:53]} Nc5 {[%emt 0:00:40]} 16. g4 {[%emt 0:
00:00]} hxg4 {[%emt 0:00:24]} 17. hxg4 {[%emt 0:00:14]} Nh4 {[%emt 0:14:00]}
18. Bg3 {[%emt 0:03:20]} c6 {[%emt 0:01:58]} 19. b4 {[%emt 0:02:45]} Ne6 {
[%emt 0:02:31]} 20. a4 {[%emt 0:01:07]} Kc7 {[%emt 0:02:09]} 21. Nde4 {[%emt 0:
00:00]} Ng6 {[%emt 0:02:47]} 22. Kc2 {[%emt 0:02:58]} Rxh1 {[%emt 0:00:48]} 23.
Rxh1 {[%emt 0:00:07]} Rh8 {[%emt 0:00:18]} 24. Rxh8 {[%emt 0:00:45]} Nxh8 {
[%emt 0:10:33]} 25. a5 {[%emt 0:01:52]} Nf7 {[%emt 0:01:14]} 26. c5 {[%emt 0:
00:00]} b6 {[%emt 0:04:35]} 27. axb6+ {[%emt 0:00:29]} axb6 {[%emt 0:00:03]}
28. cxb6+ {[%emt 0:00:29]} Kxb6 {[%emt 0:00:14]} 29. Na4+ {[%emt 0:00:20]} Kc7
{[%emt 0:00:41]} 30. Nac5 {[%emt 0:00:21]} Bc8 {[%emt 0:05:25]} 31. f3 {
[%emt 0:04:16]} Nd6 {[%emt 0:02:15]} 32. Nxd6 {[%emt 0:11:08]} Kxd6 {[%emt 0:
00:00]} 33. Ne4+ {[%emt 0:00:17]} Kc7 {[%emt 0:06:01]} 34. Be1 {[%emt 0:01:19]}
Nd8 {[%emt 0:03:33]} 35. b5 {[%emt 0:02:05]} cxb5 {[%emt 0:00:53]} 36. Ba5+ {
[%emt 0:00:00]} Kd7 {[%emt 0:00:41]} 37. Bxb5+ {[%emt 0:00:00]} Nc6 {[%emt 0:
00:00]} 38. Kc3 {[%emt 0:04:02]} Bb7 {[%emt 0:00:27]} 39. Kc4 {[%emt 0:01:58]}
Ke7 {[%emt 0:00:44]} 40. Bb6 {[%emt 0:04:51]} Kf8 {[%emt 0:00:00]} 41. Nd6 {
[%emt 0:24:20]} Ba8 42. Kc5 {[%emt 0:15:04]} Ne7 {[%emt 0:09:21]} 43. e4 {
[%emt 0:00:08]} Kg8 {[%emt 0:02:54]} 44. Bd8 {[%emt 0:00:00]} Bf8 {[%emt 0:00:
00]} 45. Bd7 {[%emt 0:00:00]} Kg7 {[%emt 0:05:14]} 46. Bc7 {[%emt 0:01:15]} Ng6
{[%emt 0:05:53]} 47. Bb5 {[%emt 0:00:00]} Bb7 {[%emt 0:03:19]} 48. Kb6 {
[%emt 0:02:24]} Bxd6 {[%emt 0:00:18]} 49. Bxd6 {[%emt 0:00:00]} Bc8 {[%emt 0:
00:00]} 1/2-1/2

[Event "44th Chess Olympiad Open 2022"]
[Site "Chennai"]
[Date "2022.08.08"]
[Round "10.68"]
[White "Croes, Octavio"]
[Black "Iclicki, Willy"]
[Result "1-0"]
[WhiteElo "1794"]
[BlackElo "1975"]
[Annotator "NA RC"]
[PlyCount "85"]
[EventDate "2022.??.??"]
[TimeControl "60"]

1. d4 {[%emt 0:00:04]} d5 {[%emt 0:00:25]} 2. c4 {[%emt 0:00:07]} c6 {[%emt 0:
00:00]} 3. Nf3 {[%emt 0:00:05]} Nf6 {[%emt 0:00:11]} 4. g3 {[%emt 0:00:06]} e6
{[%emt 0:00:24]} 5. Bg2 {[%emt 0:00:07]} Nbd7 {[%emt 0:00:37]} 6. O-O {[%emt 0:
00:00]} Bd6 {[%emt 0:00:12]} 7. Nbd2 {[%emt 0:00:36]} O-O {[%emt 0:00:23]} 8.
Qc2 {[%emt 0:00:17]} Re8 {[%emt 0:00:42]} 9. e4 {[%emt 0:01:32]} dxe4 {[%emt 0:
00:00]} 10. Nxe4 {[%emt 0:00:09]} Nxe4 {[%emt 0:00:46]} 11. Qxe4 {[%emt 0:00:
00]} e5 {[%emt 0:01:13]} 12. dxe5 {[%emt 0:01:49]} Nxe5 {[%emt 0:08:41]} 13.
Nxe5 {[%emt 0:02:04]} Bxe5 {[%emt 0:10:55]} 14. Re1 {[%emt 0:01:49]} Bd7 {
[%emt 0:10:57]} 15. Qc2 {[%emt 0:04:22]} Qf6 {[%emt 0:05:03]} 16. Be4 {[%emt 0:
00:00]} h6 {[%emt 0:04:09]} 17. Rb1 {[%emt 0:09:20]} Bh3 {[%emt 0:04:13]} 18.
Be3 {[%emt 0:03:50]} Rad8 {[%emt 0:14:25]} 19. Bxa7 {[%emt 0:08:07]} Ra8 {
[%emt 0:09:02]} 20. Bc5 {[%emt 0:02:09]} Re6 {[%emt 0:09:56]} 21. Qd3 {[%emt 0:
00:00]} Rd8 {[%emt 0:04:34]} 22. Qf3 {[%emt 0:01:33]} Qxf3 {[%emt 0:09:05]} 23.
Bxf3 {[%emt 0:00:06]} Bf5 {[%emt 0:00:41]} 24. Be4 {[%emt 0:03:53]} Bxe4 {
[%emt 0:01:28]} 25. Rxe4 {[%emt 0:00:05]} Rd2 {[%emt 0:02:29]} 26. Rbe1 {
[%emt 0:05:47]} Bf6 {[%emt 0:00:32]} 27. Rxe6 {[%emt 0:05:56]} fxe6 {[%emt 0:
00:00]} 28. Rxe6 {[%emt 0:00:38]} Rxb2 {[%emt 0:00:15]} 29. Re8+ {[%emt 0:00:
00]} Kh7 {[%emt 0:00:09]} 30. Rb8 {[%emt 0:00:31]} Rxa2 {[%emt 0:01:03]} 31.
Rxb7 {[%emt 0:00:13]} Rc2 {[%emt 0:00:24]} 32. Rb4 {[%emt 0:00:43]} Kg6 {
[%emt 0:00:38]} 33. Be3 {[%emt 0:00:28]} Kf5 {[%emt 0:01:39]} 34. c5 {[%emt 0:
00:00]} Ke6 {[%emt 0:00:14]} 35. Rb7 {[%emt 0:01:40]} Kd5 {[%emt 0:00:12]} 36.
Rd7+ {[%emt 0:00:20]} Kc4 {[%emt 0:00:46]} 37. Rd6 {[%emt 0:00:19]} Bb2 {
[%emt 0:01:02]} 38. Rxc6 {[%emt 0:00:29]} Kb5 {[%emt 0:00:03]} 39. Rc8 {
[%emt 0:00:37]} Bf6 {[%emt 0:00:23]} 40. Rb8+ {[%emt 0:03:39]} Kc6 {[%emt 0:00:
00]} 41. Rb6+ {[%emt 0:30:17]} Kd7 {[%emt 0:30:35]} 42. Bxh6 {[%emt 0:02:56]}
Bd4 {[%emt 0:00:00]} 43. Rd6+ {[%emt 0:00:00]} 1-0

[Event "44th Chess Olympiad Open 2022"]
[Site "Chennai"]
[Date "2022.08.08"]
[Round "10.68"]
[White "Stetsenko, Ilya"]
[Black "Frick, Renato"]
[Result "1-0"]
[WhiteElo "1683"]
[BlackElo "1900"]
[Annotator "NA RC"]
[PlyCount "117"]
[EventDate "2022.??.??"]
[TimeControl "60"]

1. e4 {[%emt 0:00:05]} c5 {[%emt 0:00:15]} 2. Nf3 {[%emt 0:00:06]} Nc6 {
[%emt 0:00:16]} 3. d4 {[%emt 0:00:04]} cxd4 {[%emt 0:00:04]} 4. Nxd4 {[%emt 0:
00:00]} g6 {[%emt 0:00:17]} 5. c4 {[%emt 0:00:05]} Bg7 {[%emt 0:00:04]} 6. Be3
{[%emt 0:00:03]} Nf6 {[%emt 0:00:27]} 7. Nc3 {[%emt 0:00:06]} O-O {[%emt 0:00:
00]} 8. Be2 {[%emt 0:00:06]} d6 {[%emt 0:01:39]} 9. O-O {[%emt 0:00:05]} Bd7 {
[%emt 0:05:47]} 10. Qd2 {[%emt 0:00:50]} Ng4 {[%emt 0:10:12]} 11. Bxg4 {
[%emt 0:00:28]} Bxg4 {[%emt 0:00:08]} 12. f3 {[%emt 0:04:41]} Be6 {[%emt 0:00:
00]} 13. Nd5 {[%emt 0:07:07]} Rc8 {[%emt 0:08:17]} 14. Rac1 {[%emt 0:01:42]}
Bd7 {[%emt 0:00:59]} 15. b3 {[%emt 0:06:07]} Re8 {[%emt 0:06:13]} 16. Rfd1 {
[%emt 0:07:37]} h5 {[%emt 0:08:43]} 17. Nb5 {[%emt 0:04:45]} Be6 {[%emt 0:00:
00]} 18. Nxa7 {[%emt 0:02:08]} Nxa7 {[%emt 0:02:01]} 19. Bxa7 {[%emt 0:00:07]}
Bxd5 {[%emt 0:00:30]} 20. exd5 {[%emt 0:04:41]} e5 {[%emt 0:03:21]} 21. dxe6 {
[%emt 0:01:16]} Rxe6 {[%emt 0:00:44]} 22. Bd4 {[%emt 0:01:11]} Bf8 {[%emt 0:00:
00]} 23. Bb2 {[%emt 0:03:45]} Kh7 {[%emt 0:01:29]} 24. f4 {[%emt 0:04:21]} Qh4
{[%emt 0:00:40]} 25. Qf2 {[%emt 0:01:19]} Qg4 {[%emt 0:01:05]} 26. h3 {[%emt 0:
00:00]} Qf5 {[%emt 0:03:22]} 27. Rd5 {[%emt 0:01:01]} Qe4 {[%emt 0:04:17]} 28.
Qc2 {[%emt 0:04:04]} Qe3+ {[%emt 0:10:48]} 29. Kh1 {[%emt 0:01:12]} Qxf4 {
[%emt 0:00:10]} 30. Rxh5+ {[%emt 0:00:14]} Bh6 {[%emt 0:00:08]} 31. Rg1 {
[%emt 0:09:09]} Qe4 {[%emt 0:01:49]} 32. Qxe4 {[%emt 0:01:01]} Rxe4 {[%emt 0:
00:00]} 33. Rb5 {[%emt 0:05:07]} Re2 {[%emt 0:04:59]} 34. Ba3 {[%emt 0:03:02]}
Bf4 {[%emt 0:04:43]} 35. Rxb7 {[%emt 0:02:06]} Kg7 {[%emt 0:00:16]} 36. Rf1 {
[%emt 0:00:58]} g5 {[%emt 0:00:29]} 37. Bc1 {[%emt 0:01:42]} Bxc1 {[%emt 0:00:
00]} 38. Rxc1 {[%emt 0:00:01]} Rxa2 {[%emt 0:00:19]} 39. Rf1 {[%emt 0:02:21]}
Rf8 {[%emt 0:00:24]} 40. Rd1 {[%emt 0:02:11]} Re8 {[%emt 0:00:46]} 41. Rd3 {
[%emt 0:30:53]} Ree2 {[%emt 0:30:57]} 42. Rg3 {[%emt 0:00:05]} Kg6 {[%emt 0:00:
00]} 43. h4 {[%emt 0:00:00]} f6 {[%emt 0:00:00]} 44. hxg5 {[%emt 0:00:00]} fxg5
{[%emt 0:00:00]} 45. Rb5 {[%emt 0:00:00]} Re5 {[%emt 0:00:00]} 46. Rxe5 {
[%emt 0:00:00]} dxe5 {[%emt 0:00:00]} 47. Rc3 {[%emt 0:00:00]} Kf5 {[%emt 0:00:
00]} 48. c5 {[%emt 0:00:00]} g4 {[%emt 0:00:00]} 49. g3 {[%emt 0:00:00]} Ra8 {
[%emt 0:00:00]} 50. c6 {[%emt 0:00:00]} Ke6 {[%emt 0:00:00]} 51. b4 {[%emt 0:
00:00]} Kd6 {[%emt 0:00:00]} 52. b5 {[%emt 0:00:00]} Kc7 {[%emt 0:00:00]} 53.
Kg2 {[%emt 0:00:00]} Ra2+ {[%emt 0:00:00]} 54. Kf1 {[%emt 0:00:00]} Rb2 {
[%emt 0:00:00]} 55. Rc5 {[%emt 0:00:00]} Rb3 {[%emt 0:00:00]} 56. Rxe5 {
[%emt 0:00:00]} Rxg3 {[%emt 0:00:00]} 57. Re7+ {[%emt 0:00:00]} Kd8 {[%emt 0:
00:00]} 58. Rd7+ {[%emt 0:00:00]} Kc8 {[%emt 0:00:00]} 59. b6 {[%emt 0:00:00]}
1-0

[Event "44th Chess Olympiad Open 2022"]
[Site "Chennai"]
[Date "2022.08.08"]
[Round "10.69"]
[White "Wojciechowski, Paul"]
[Black "Winston Gerald, Mansfield Thomas"]
[Result "0-1"]
[WhiteElo "1944"]
[BlackElo "1832"]
[Annotator "NA RC"]
[PlyCount "80"]
[EventDate "2022.??.??"]
[TimeControl "60"]

1. e4 {[%emt 0:00:04]} d6 {[%emt 0:00:12]} 2. d4 {[%emt 0:00:08]} Nf6 {[%emt 0:
00:00]} 3. Nc3 {[%emt 0:00:08]} c6 {[%emt 0:00:19]} 4. f4 {[%emt 0:00:14]} Qa5
{[%emt 0:00:12]} 5. Bd3 {[%emt 0:00:23]} e5 {[%emt 0:00:26]} 6. Nf3 {[%emt 0:
00:00]} Nbd7 {[%emt 0:00:43]} 7. O-O {[%emt 0:00:19]} Qc7 {[%emt 0:00:49]} 8.
Kh1 {[%emt 0:06:34]} b5 {[%emt 0:00:28]} 9. a3 {[%emt 0:03:40]} Be7 {[%emt 0:
00:00]} 10. Qe1 {[%emt 0:06:48]} O-O {[%emt 0:02:25]} 11. Be3 {[%emt 0:09:31]}
a6 {[%emt 0:00:26]} 12. Rd1 {[%emt 0:06:08]} Re8 {[%emt 0:02:12]} 13. dxe5 {
[%emt 0:04:04]} dxe5 {[%emt 0:00:22]} 14. f5 {[%emt 0:00:05]} Bb7 {[%emt 0:00:
00]} 15. Qg3 {[%emt 0:09:37]} Kh8 {[%emt 0:05:43]} 16. Be2 {[%emt 0:08:27]} a5
{[%emt 0:03:00]} 17. Bd3 {[%emt 0:05:56]} b4 {[%emt 0:01:16]} 18. Nb1 {[%emt 0:
00:00]} bxa3 {[%emt 0:02:07]} 19. Nxa3 {[%emt 0:00:48]} Bxa3 {[%emt 0:00:19]}
20. bxa3 {[%emt 0:00:04]} c5 {[%emt 0:00:40]} 21. Ng5 {[%emt 0:02:49]} Rf8 {
[%emt 0:06:33]} 22. Qh4 {[%emt 0:04:04]} c4 {[%emt 0:01:16]} 23. Be2 {[%emt 0:
00:00]} Ra6 {[%emt 0:06:21]} 24. Rf3 {[%emt 0:06:08]} h6 {[%emt 0:01:21]} 25.
Rh3 {[%emt 0:00:23]} Kg8 {[%emt 0:04:07]} 26. Ne6 {[%emt 0:14:22]} fxe6 {
[%emt 0:00:44]} 27. Bxh6 {[%emt 0:00:15]} Rf7 {[%emt 0:07:02]} 28. Bg5 {
[%emt 0:02:39]} Kf8 {[%emt 0:01:37]} 29. Qh8+ {[%emt 0:00:07]} Ke7 {[%emt 0:00:
00]} 30. Bh5 {[%emt 0:00:22]} Qc8 {[%emt 0:04:58]} 31. Qxc8 {[%emt 0:02:18]}
Bxc8 {[%emt 0:00:12]} 32. Bxf7 {[%emt 0:00:39]} Kxf7 {[%emt 0:00:09]} 33. fxe6+
{[%emt 0:00:31]} Kxe6 {[%emt 0:00:27]} 34. Re3 {[%emt 0:03:14]} Bb7 {[%emt 0:
00:00]} 35. Bxf6 {[%emt 0:00:34]} Nxf6 {[%emt 0:00:09]} 36. Rde1 {[%emt 0:00:
00]} Rd6 {[%emt 0:00:27]} 37. h3 {[%emt 0:00:23]} Rd4 {[%emt 0:00:13]} 38. Rb1
{[%emt 0:00:46]} Bxe4 {[%emt 0:01:11]} 39. Rb6+ {[%emt 0:00:13]} Kf5 {[%emt 0:
00:00]} 40. Rc3 {[%emt 0:00:29]} Nd5 {[%emt 0:00:46]} 0-1